[Event "Mitropa Cup Women 2019"]
[Site "Radenci"]
[Date "2019.05.28"]
[Round "2.8"]
[White "Spiranec, Noemi"]
[Black "Pellicoro, Nathalie"]
[Result "1-0"]
[ECO "E63"]
[WhiteElo "2009"]
[BlackElo "1893"]
[Annotator "NA"]
[PlyCount "59"]
[EventDate "2019.05.27"]
[EventType "team-tourn"]
[EventCountry "SLO"]
[SourceTitle "playchess.com"]
[Source "ChessBase"]
[SourceQuality "1"]
[TimeControl "40/5400+30:1800+30"]

1. d4 {[%emt 0:01:50]} Nf6 {[%emt 0:00:00]} 2. c4 {[%emt 0:00:07]} g6 {[%emt 0:00:00]} 3. g3 {[%emt 0:00:07]} Bg7 {[%emt 0:00:00]} 4. Bg2 {[%emt 0:00:06]} O-O {[%emt 0:00:42]} 5. Nc3 {[%emt 0:00:10]} d6 {[%emt 0:00:19]} 6. Nf3 {[%emt 0:00:05]} Nc6 {[%emt 0:00:21]} 7. O-O {[%emt 0:00:08]} a6 {[%emt 0:00:57]} 8. Ne1 {[%emt 0:17:53]} Rb8 {[%emt 0:05:21]} 9. Nc2 {[%emt 0:00:21]} Na5 {[%emt 0:13:43]} 10. Qd3 {[%emt 0:04:13]} c5 {[%emt 0:03:12]} 11. dxc5 {[%emt 0:02:14]} Bf5 {[%emt 0:04:21]} 12. e4 {[%emt 0:12:57]} Be6 {[%emt 0:01:18]} 13. Nd5 {[%emt 0:01:02]} dxc5 {[%emt 0:02:44]} 14. Bf4 {[%emt 0:00:58]} Rc8 {[%emt 0:02:00]} 15. Rad1 {[%emt 0:01:36]} Ng4 {[%emt 0:10:09]} 16. Qe2 {[%emt 0:02:32]} Bd7 {[%emt 0:13:15]} 17. Bh3 {[%emt 0:03:38]} h5 {[%emt 0:07:54]} 18. f3 {[%emt 0:00:20]} e6 {[%emt 0:06:39]} 19. fxg4 {[%emt 0:05:46]} exd5 {[%emt 0:01:31]} 20. Rxd5 {[%emt 0:00:38]} Nc6 {[%emt 0:05:55]} 21. Bd6 {[%emt 0:10:19]} Nd4 {[%emt 0:03:14]} 22. Nxd4 {[%emt 0:00:10]} Bxd4+ {[%emt 0:01:00]} 23. Kh1 {[%emt 0:01:05]} Re8 {[%emt 0:02:41]} 24. Qf3 {[%emt 0:10:02]} Be6 {[%emt 0:01:14]} 25. gxh5 {[%emt 0:00:41]} Bxd5 {[%emt 0:02:54]} 26. cxd5 {[%emt 0:00:11]} Qxd6 {[%emt 0:00:36]} 27. Qxf7+ {[%emt 0:00:17]} Kh8 {[%emt 0:00:05]} 28. Bxc8 {[%emt 0:01:02]} Rxc8 {[%emt 0:00:42]} 29. hxg6 {[%emt 0:01:18]} Bg7 {[%emt 0:00:19]} 30. Rf5 {[%emt 0:00:16]} 1-0

[Event "Mitropa Cup Women 2019"]
[Site "Radenci"]
[Date "2019.05.28"]
[Round "2.9"]
[White "Gueci, Tea"]
[Black "Pychova, Nela"]
[Result "0-1"]
[ECO "C43"]
[WhiteElo "2251"]
[BlackElo "2174"]
[Annotator "ChessBase"]
[PlyCount "128"]
[EventDate "2019.05.27"]
[EventType "team-tourn"]
[EventCountry "SLO"]
[SourceTitle "playchess.com"]
[Source "ChessBase"]
[SourceQuality "1"]
[TimeControl "40/5400+30:1800+30"]

1. e4 {[%emt 0:00:00]} e5 {[%emt 0:00:00]} 2. Nf3 {[%emt 0:00:00]} Nf6 {[%emt 0:00:00]} 3. d4 {[%emt 0:00:00]} Nxe4 {[%emt 0:05:26]} 4. Bd3 {[%emt 0:00:00]} d5 {[%emt 0:00:31]} 5. Nxe5 {[%emt 0:00:05]} Bd6 {[%emt 0:13:49]} 6. O-O {[%emt 0:00:37]} O-O {[%emt 0:00:37]} 7. c4 {[%emt 0:00:33]} c6 {[%emt 0:02:07]} 8. Nc3 {[%emt 0:01:06]} Nxc3 {[%emt 0:07:08]} 9. bxc3 {[%emt 0:00:08]} Qh4 {[%emt 0:08:53]} 10. f4 {[%emt 0:05:55]} Nd7 {[%emt 0:11:43]} 11. Rb1 {[%emt 0:17:12]} dxc4 {[%emt 0:02:38]} 12. Nxc4 {[%emt 0:05:02]} Bc7 {[%emt 0:01:05]} 13. Qe1 {[%emt 0:08:02]} Qxe1 {[%emt 0:04:08]} 14. Rxe1 {[%emt 0:00:09]} b5 {[%emt 0:01:47]} 15. Ne5 {[%emt 0:04:33]} Nxe5 {[%emt 0:03:38]} 16. fxe5 {[%emt 0:00:33]} Ba5 {[%emt 0:01:35]} 17. Re3 {[%emt 0:12:35]} Be6 {[%emt 0:03:54]} 18. Be4 {[%emt 0:04:29]} Rfc8 {[%emt 0:05:24]} 19. Rg3 {[%emt 0:03:51]} Bb6 {[%emt 0:07:45]} 20. Rb2 {[%emt 0:04:14]} Rab8 {[%emt 0:06:04]} 21. Be3 {[%emt 0:05:37]} Ba5 {[%emt 0:03:52]} 22. Bg5 {[%emt 0:05:24]} Rb7 {[%emt 0:03:12]} 23. Kf2 {[%emt 0:06:12]} Rd7 {[%emt 0:00:51]} 24. h3 {[%emt 0:06:53]} a6 {[%emt 0:00:35]} 25. Rd3 {[%emt 0:08:19]} g6 {[%emt 0:04:18]} 26. Rc2 {[%emt 0:00:38]} Bc4 {[%emt 0:00:58]} 27. Rd1 {[%emt 0:00:22]} Bb6 {[%emt 0:00:48]} 28. Be3 {[%emt 0:00:38]} Bd8 {[%emt 0:00:14]} 29. Bc1 {[%emt 0:00:34]} Be7 {[%emt 0:00:36]} 30. g3 {[%emt 0:00:29]} Kg7 {[%emt 0:00:36]} 31. h4 {[%emt 0:00:36]} h6 {[%emt 0:00:35]} 32. Bf3 {[%emt 0:00:17]} Be6 {[%emt 0:00:05]} 33. Rcd2 {[%emt 0:00:41]} a5 {[%emt 0:00:58]} 34. a3 {[%emt 0:00:15]} Bb3 {[%emt 0:00:14]} 35. Re1 {[%emt 0:00:13]} Be6 {[%emt 0:00:21]} 36. Red1 {[%emt 0:00:10]} a4 {[%emt 0:00:51]} 37. Bb2 {[%emt 0:00:27]} Bd8 {[%emt 0:00:32]} 38. Bxc6 {[%emt 0:01:23]} Rxc6 {[%emt 0:00:10]} 39. d5 {[%emt 0:00:02]} Bb6+ {[%emt 0:00:23]} 40. Kf3 {[%emt 0:00:00]} Bxd5+ {[%emt 0:00:00]} 41. Rxd5 {[%emt 0:01:14]} Rxd5 {[%emt 0:13:09]} 42. Rxd5 {[%emt 0:00:05]} Rc5 {[%emt 0:00:44]} 43. Rxc5 {[%emt 0:08:18]} Bxc5 {[%emt 0:00:03]} 44. Bc1 {[%emt 0:05:36]} f5 {[%emt 0:04:12]} 45. exf6+ {[%emt 0:03:50]} Kxf6 {[%emt 0:00:03]} 46. Ke4 {[%emt 0:00:37]} Ke6 {[%emt 0:00:53]} 47. g4 {[%emt 0:08:34]} h5 {[%emt 0:01:50]} 48. gxh5 {[%emt 0:02:28]} gxh5 {[%emt 0:00:02]} 49. Bb2 {[%emt 0:04:46]} Be7 {[%emt 0:02:42]} 50. Bc1 {[%emt 0:00:16]} Bf6 {[%emt 0:00:39]} 51. Bd2 {[%emt 0:00:47]} Be5 {[%emt 0:05:47]} 52. Kd3 {[%emt 0:00:25]} Kd5 {[%emt 0:00:22]} 53. Bg5 {[%emt 0:00:22]} Bd6 {[%emt 0:00:23]} 54. Bc1 {[%emt 0:00:40]} Be7 {[%emt 0:00:12]} 55. c4+ {[%emt 0:00:43]} bxc4+ {[%emt 0:00:07]} 56. Kc3 {[%emt 0:00:01]} Bxh4 {[%emt 0:00:16]} 57. Kb4 {[%emt 0:00:01]} Be7+ {[%emt 0:01:47]} 58. Kxa4 {[%emt 0:00:12]} h4 {[%emt 0:00:21]} 59. Bf4 {[%emt 0:01:14]} Bd6 {[%emt 0:00:35]} 60. Be3 {[%emt 0:00:16]} h3 {[%emt 0:00:21]} 61. Bg1 {[%emt 0:00:07]} h2 {[%emt 0:00:17]} 62. Bxh2 {[%emt 0:00:03]} Bxh2 {[%emt 0:00:04]} 63. Kb4 {[%emt 0:00:17]} Kd4 {[%emt 0:00:07]} 64. a4 {[%emt 0:00:07]} c3 {[%emt 0:00:07]} 0-1

[Event "Mitropa Cup Women 2019"]
[Site "Radenci"]
[Date "2019.05.28"]
[Round "2.10"]
[White "Nemcova, Karin"]
[Black "Palma, Maria"]
[Result "0-1"]
[ECO "C14"]
[WhiteElo "1947"]
[BlackElo "2018"]
[Annotator "NA"]
[PlyCount "104"]
[EventDate "2019.05.27"]
[EventType "team-tourn"]
[EventCountry "SLO"]
[SourceTitle "playchess.com"]
[Source "ChessBase"]
[SourceQuality "1"]
[TimeControl "40/5400+30:1800+30"]

1. e4 {[%emt 0:00:00]} e6 {[%emt 0:00:00]} 2. d4 {[%emt 0:00:00]} d5 {[%emt 0:00:00]} 3. Nc3 {[%emt 0:00:00]} Nf6 {[%emt 0:00:00]} 4. Bg5 {[%emt 0:00:00]} Be7 {[%emt 0:00:00]} 5. e5 {[%emt 0:00:02]} Nfd7 {[%emt 0:00:03]} 6. Bxe7 {[%emt 0:00:08]} Qxe7 {[%emt 0:00:05]} 7. f4 {[%emt 0:00:11]} a6 {[%emt 0:02:02]} 8. Nf3 {[%emt 0:01:02]} c5 {[%emt 0:00:43]} 9. Qd2 {[%emt 0:00:36]} Nc6 {[%emt 0:01:01]} 10. dxc5 {[%emt 0:00:24]} O-O {[%emt 0:00:46]} 11. O-O-O {[%emt 0:04:17]} Nxc5 {[%emt 0:01:30]} 12. f5 {[%emt 0:15:51]} Ne4 {[%emt 0:13:37]} 13. Nxe4 {[%emt 0:09:41]} dxe4 {[%emt 0:00:15]} 14. f6 {[%emt 0:01:47]} gxf6 {[%emt 0:04:03]} 15. exf6 {[%emt 0:08:43]} Qxf6 {[%emt 0:00:12]} 16. Ng5 {[%emt 0:00:50]} Qe5 {[%emt 0:10:36]} 17. Qe3 {[%emt 0:05:42]} f5 {[%emt 0:06:06]} 18. g3 {[%emt 0:04:54]} Nb4 {[%emt 0:05:13]} 19. Bc4 {[%emt 0:06:03]} b5 {[%emt 0:04:16]} 20. Bb3 {[%emt 0:01:38]} Nd5 {[%emt 0:11:17]} 21. Qc5 {[%emt 0:14:14]} Rd8 {[%emt 0:09:13]} 22. Rhe1 {[%emt 0:06:57]} Bb7 {[%emt 0:03:29]} 23. Bxd5 {[%emt 0:04:40]} Bxd5 {[%emt 0:04:46]} 24. Nh3 {[%emt 0:02:21]} Rdc8 {[%emt 0:04:08]} 25. Qa3 {[%emt 0:01:07]} Rc6 {[%emt 0:05:01]} 26. Kb1 {[%emt 0:02:45]} Rac8 {[%emt 0:05:12]} 27. Rd2 {[%emt 0:00:15]} Rc4 {[%emt 0:02:45]} 28. Qe3 {[%emt 0:01:33]} a5 {[%emt 0:04:42]} 29. Nf4 {[%emt 0:02:28]} a4 {[%emt 0:00:35]} 30. Red1 {[%emt 0:04:09]} a3 {[%emt 0:00:49]} 31. c3 {[%emt 0:01:07]} R4c5 {[%emt 0:01:39]} 32. Nd3 {[%emt 0:01:13]} Bxa2+ {[%emt 0:00:33]} 33. Kxa2 {[%emt 0:00:36]} exd3 {[%emt 0:00:52]} 34. Qxe5 {[%emt 0:00:46]} Rxe5 {[%emt 0:00:02]} 35. Kxa3 {[%emt 0:00:08]} Ra8+ {[%emt 0:01:11]} 36. Kb3 {[%emt 0:00:35]} Ra4 {[%emt 0:00:34]} 37. Rxd3 {[%emt 0:00:16]} Re2 {[%emt 0:00:32]} 38. Rd7 {[%emt 0:01:09]} Rxh2 {[%emt 0:00:22]} 39. Rb7 {[%emt 0:00:14]} Ra8 {[%emt 0:00:13]} 40. Rxb5 {[%emt 0:00:00]} Kf7 {[%emt 0:00:00]} 41. Rd3 {[%emt 0:10:04]} Rh3 {[%emt 0:08:30]} 42. Rf3 {[%emt 0:10:59]} Rg8 {[%emt 0:04:34]} 43. Rb7+ {[%emt 0:01:37]} Kf6 {[%emt 0:00:46]} 44. Kc4 {[%emt 0:00:09]} e5 {[%emt 0:02:33]} 45. Rb6+ {[%emt 0:03:12]} Kg5 {[%emt 0:00:32]} 46. Re3 {[%emt 0:00:20]} e4 {[%emt 0:03:18]} 47. b4 {[%emt 0:00:45]} Kg4 {[%emt 0:02:33]} 48. Rf6 {[%emt 0:01:06]} h5 {[%emt 0:07:55]} 49. Kd4 {[%emt 0:00:45]} h4 {[%emt 0:00:31]} 50. b5 {[%emt 0:06:48]} hxg3 {[%emt 0:00:30]} 51. Re2 {[%emt 0:00:33]} Rd8+ {[%emt 0:02:08]} 52. Ke5 {[%emt 0:00:41]} Rh5 {[%emt 0:01:37] Kd4} 0-1

[Event "Mitropa Cup Women 2019"]
[Site "Radenci"]
[Date "2019.05.28"]
[Round "2.11"]
[White "Andolfatto, Maria"]
[Black "Koubova, Anna Marie"]
[Result "1-0"]
[ECO "E69"]
[WhiteElo "2041"]
[BlackElo "1975"]
[Annotator "NA"]
[PlyCount "81"]
[EventDate "2019.05.27"]
[EventType "team-tourn"]
[EventCountry "SLO"]
[SourceTitle "playchess.com"]
[Source "ChessBase"]
[SourceQuality "1"]
[TimeControl "40/5400+30:1800+30"]

1. Nf3 {[%emt 0:00:00]} Nf6 {[%emt 0:00:00]} 2. c4 {[%emt 0:00:00]} g6 {[%emt 0:00:00]} 3. g3 {[%emt 0:00:00]} Bg7 {[%emt 0:00:00]} 4. Bg2 {[%emt 0:00:00]} O-O {[%emt 0:00:03]} 5. Nc3 {[%emt 0:00:00]} d6 {[%emt 0:00:09]} 6. d4 {[%emt 0:00:28]} Nbd7 {[%emt 0:00:19]} 7. O-O {[%emt 0:00:20]} e5 {[%emt 0:00:23]} 8. e4 {[%emt 0:00:44]} c6 {[%emt 0:00:12]} 9. h3 {[%emt 0:01:05]} Qb6 {[%emt 0:00:31]} 10. Re1 {[%emt 0:02:26]} exd4 {[%emt 0:00:22]} 11. Nxd4 {[%emt 0:02:41]} Ng4 {[%emt 0:00:19]} 12. Nce2 {[%emt 0:05:09]} Nge5 {[%emt 0:00:10]} 13. b3 {[%emt 0:00:27]} Nc5 {[%emt 0:00:12]} 14. Be3 {[%emt 0:04:56]} a5 {[%emt 0:00:12]} 15. Rb1 {[%emt 0:03:54]} Re8 {[%emt 0:00:18]} 16. Nc3 {[%emt 0:02:44]} Qb4 {[%emt 0:00:40]} 17. Qd2 {[%emt 0:10:01]} a4 {[%emt 0:00:42]} 18. f4 {[%emt 0:15:24]} Ned3 {[%emt 0:15:44]} 19. Red1 {[%emt 0:06:12]} a3 {[%emt 0:15:58]} 20. e5 {[%emt 0:09:13]} Nb2 {[%emt 0:15:28]} 21. Rf1 {[%emt 0:03:47]} Ncd3 {[%emt 0:30:22]} 22. exd6 {[%emt 0:13:47]} Qxd6 {[%emt 0:00:51]} 23. Nce2 {[%emt 0:03:38]} Nb4 {[%emt 0:09:02]} 24. Rf2 {[%emt 0:12:45]} c5 {[%emt 0:02:37]} 25. Nb5 {[%emt 0:00:57]} Qe7 {[%emt 0:01:23]} 26. Rf3 {[%emt 0:01:20]} Bf5 {[%emt 0:01:09]} 27. Rbf1 {[%emt 0:00:54]} Be4 {[%emt 0:00:52]} 28. Nd6 {[%emt 0:00:35]} Bxf3 {[%emt 0:02:21]} 29. Rxf3 {[%emt 0:00:24]} Rad8 {[%emt 0:01:54]} 30. Bxc5 {[%emt 0:00:09]} Qxe2 {[%emt 0:00:57]} 31. Qxe2 {[%emt 0:00:09]} Rxe2 {[%emt 0:00:04]} 32. Bxb4 {[%emt 0:00:15]} Bf8 {[%emt 0:01:04]} 33. c5 {[%emt 0:01:08]} Bxd6 {[%emt 0:01:31]} 34. cxd6 {[%emt 0:00:13]} Rc2 {[%emt 0:00:32]} 35. Bxa3 {[%emt 0:00:43]} Rc1+ {[%emt 0:00:30]} 36. Rf1 {[%emt 0:00:56]} Rxf1+ {[%emt 0:00:33]} 37. Kxf1 {[%emt 0:00:07]} Nd1 {[%emt 0:00:14]} 38. Bc5 {[%emt 0:00:51]} b5 {[%emt 0:00:38]} 39. Bc6 {[%emt 0:00:30]} Nb2 {[%emt 0:00:40]} 40. Bxb5 {[%emt 0:00:00]} Nd3 {[%emt 0:00:00]} 41. Bxd3 {[%emt 0:03:46]} 1-0

[Event "Mitropa Cup Women 2019"]
[Site "Radenci"]
[Date "2019.05.28"]
[Round "2.12"]
[White "Pribylova, Sofie"]
[Black "Raccanello, Marianna"]
[Result "1-0"]
[ECO "B38"]
[WhiteElo "2069"]
[BlackElo "2019"]
[Annotator "NA"]
[PlyCount "55"]
[EventDate "2019.05.27"]
[EventType "team-tourn"]
[EventCountry "SLO"]
[SourceTitle "playchess.com"]
[Source "ChessBase"]
[SourceQuality "1"]
[TimeControl "40/5400+30:1800+30"]

1. e4 {[%emt 0:00:00]} c5 {[%emt 0:00:00]} 2. Nf3 {[%emt 0:00:00]} g6 {[%emt 0:00:00]} 3. d4 {[%emt 0:00:40]} cxd4 {[%emt 0:00:00]} 4. Nxd4 {[%emt 0:00:05]} Bg7 {[%emt 0:00:00]} 5. c4 {[%emt 0:01:02]} Nf6 {[%emt 0:00:33]} 6. Nc3 {[%emt 0:00:11]} Nc6 {[%emt 0:00:19]} 7. Be3 {[%emt 0:00:44]} O-O {[%emt 0:00:15]} 8. Be2 {[%emt 0:00:27]} d6 {[%emt 0:00:12]} 9. O-O {[%emt 0:01:38]} Bd7 {[%emt 0:00:30]} 10. Qd2 {[%emt 0:01:12]} a5 {[%emt 0:01:30]} 11. b3 {[%emt 0:00:14]} Nxd4 {[%emt 0:00:56]} 12. Bxd4 {[%emt 0:00:07]} Bc6 {[%emt 0:00:14]} 13. f3 {[%emt 0:00:58]} Nd7 {[%emt 0:00:12]} 14. Be3 {[%emt 0:00:44]} Nc5 {[%emt 0:00:41]} 15. Rab1 {[%emt 0:00:20]} Be5 {[%emt 0:05:20]} 16. Rfd1 {[%emt 0:01:06]} e6 {[%emt 0:01:37]} 17. Bd4 {[%emt 0:01:34]} Qe7 {[%emt 0:02:48]} 18. Qe3 {[%emt 0:07:13]} f5 {[%emt 0:15:17]} 19. Bxe5 {[%emt 0:10:49]} dxe5 {[%emt 0:00:08]} 20. exf5 {[%emt 0:14:17]} exf5 {[%emt 0:00:28]} 21. Nd5 {[%emt 0:02:25]} Bxd5 {[%emt 0:00:30]} 22. Rxd5 {[%emt 0:00:21]} Nd7 {[%emt 0:01:09]} 23. Rbd1 {[%emt 0:03:15]} Rfd8 {[%emt 0:01:30]} 24. Qd2 {[%emt 0:03:20]} a4 {[%emt 0:15:49]} 25. Rxd7 {[%emt 0:02:05]} Rxd7 {[%emt 0:00:06]} 26. Qxd7 {[%emt 0:00:06]} Qc5+ {[%emt 0:00:05]} 27. Kh1 {[%emt 0:06:52]} axb3 {[%emt 0:00:22]} 28. Qxb7 {[%emt 0:02:50]} 1-0

[Event "Mitropa Cup Women 2019"]
[Site "Radenci"]
[Date "2019.05.28"]
[Round "2.13"]
[White "Havanecz, Bianka"]
[Black "Motycakova, Monika"]
[Result "1-0"]
[ECO "D44"]
[WhiteElo "2279"]
[BlackElo "2150"]
[Annotator "ChessBase"]
[PlyCount "75"]
[EventDate "2019.05.27"]
[EventType "team-tourn"]
[EventCountry "SLO"]
[SourceTitle "playchess.com"]
[Source "ChessBase"]
[SourceQuality "1"]
[TimeControl "40/5400+30:1800+30"]

1. d4 {[%emt 0:00:00]} d5 {[%emt 0:03:43]} 2. c4 {[%emt 0:00:00]} c6 {[%emt 0:00:07]} 3. Nf3 {[%emt 0:00:00]} Nf6 {[%emt 0:00:07]} 4. Nc3 {[%emt 0:00:00]} e6 {[%emt 0:00:18]} 5. Bg5 {[%emt 0:00:00]} h6 {[%emt 0:00:42]} 6. Bh4 {[%emt 0:01:46]} dxc4 {[%emt 0:00:18]} 7. e4 {[%emt 0:11:48]} g5 {[%emt 0:01:08]} 8. Bg3 {[%emt 0:00:05]} b5 {[%emt 0:00:04]} 9. e5 {[%emt 0:13:09]} Nd5 {[%emt 0:01:50]} 10. Nd2 {[%emt 0:05:23]} Nd7 {[%emt 0:08:23]} 11. Be2 {[%emt 0:01:30]} Bb7 {[%emt 0:11:19]} 12. O-O {[%emt 0:00:21]} Qb6 {[%emt 0:13:14]} 13. Nde4 {[%emt 0:01:48]} O-O-O {[%emt 0:00:44]} 14. a4 {[%emt 0:07:45]} a6 {[%emt 0:08:44]} 15. Bh5 {[%emt 0:00:30]} Rh7 {[%emt 0:00:30]} 16. axb5 {[%emt 0:00:30]} cxb5 {[%emt 0:00:30]} 17. Qb1 {[%emt 0:00:30]} Rg7 {[%emt 0:00:30]} 18. Rd1 {[%emt 0:00:30]} Be7 {[%emt 0:47:19]} 19. b3 {[%emt 0:11:54]} cxb3 {[%emt 0:00:00]} 20. Qxb3 {[%emt 0:00:23]} Kb8 {[%emt 0:00:00]} 21. Be2 {[%emt 0:05:11]} Nf4 {[%emt 0:00:00]} 22. Bxf4 {[%emt 0:05:45]} gxf4 {[%emt 0:00:00]} 23. Bf3 {[%emt 0:00:06]} f5 {[%emt 0:00:00]} 24. Nd2 {[%emt 0:01:39]} Rdg8 {[%emt 0:00:00]} 25. g3 {[%emt 0:06:06]} fxg3 {[%emt 0:00:00]} 26. hxg3 {[%emt 0:00:04]} f4 {[%emt 0:00:00]} 27. Bxb7 {[%emt 0:03:59]} fxg3 {[%emt 0:02:05]} 28. Bxa6 {[%emt 0:01:16]} gxf2+ {[%emt 0:00:03]} 29. Kf1 {[%emt 0:00:05]} Rg1+ {[%emt 0:01:00]} 30. Ke2 {[%emt 0:00:04]} b4 {[%emt 0:01:01]} 31. Qc4 {[%emt 0:05:14]} f1=Q+ {[%emt 0:00:44]} 32. Rxf1 {[%emt 0:01:59]} R8g2+ {[%emt 0:00:04]} 33. Ke1 {[%emt 0:03:19]} Bh4+ {[%emt 0:00:59]} 34. Kd1 {[%emt 0:00:01]} Rxf1+ {[%emt 0:00:49]} 35. Nxf1 {[%emt 0:00:35]} Rg8 {[%emt 0:00:38]} 36. Na4 {[%emt 0:02:03]} Qa5 {[%emt 0:00:35]} 37. Qxe6 {[%emt 0:07:30]} Rg2 {[%emt 0:00:31]} 38. Qc6 {[%emt 0:00:52]} 1-0

[Event "Mitropa Cup Women 2019"]
[Site "Radenci"]
[Date "2019.05.28"]
[Round "2.14"]
[White "Ferkova, Dominika"]
[Black "Juhasz, Barbara"]
[Result "1-0"]
[ECO "E81"]
[WhiteElo "2037"]
[BlackElo "2207"]
[Annotator "ChessBase"]
[PlyCount "53"]
[EventDate "2019.05.27"]
[EventType "team-tourn"]
[EventCountry "SLO"]
[SourceTitle "playchess.com"]
[Source "ChessBase"]
[SourceQuality "1"]
[TimeControl "40/5400+30:1800+30"]

1. d4 {[%emt 0:00:00]} Nf6 {[%emt 0:00:00]} 2. c4 {[%emt 0:00:00]} g6 {[%emt 0:00:00]} 3. Nc3 {[%emt 0:00:00]} Bg7 {[%emt 0:00:00]} 4. e4 {[%emt 0:00:00]} d6 {[%emt 0:00:04]} 5. f3 {[%emt 0:00:03]} O-O {[%emt 0:00:11]} 6. Nge2 {[%emt 0:00:08]} c5 {[%emt 0:00:16]} 7. Be3 {[%emt 0:00:28]} Nc6 {[%emt 0:00:11]} 8. d5 {[%emt 0:00:09]} Ne5 {[%emt 0:00:08]} 9. Ng3 {[%emt 0:00:15]} h5 {[%emt 0:00:31]} 10. Be2 {[%emt 0:02:08]} h4 {[%emt 0:02:16]} 11. Nf1 {[%emt 0:00:20]} e6 {[%emt 0:00:14]} 12. Bg5 {[%emt 0:02:35]} Qb6 {[%emt 0:00:12]} 13. Qd2 {[%emt 0:04:25]} exd5 {[%emt 0:01:08]} 14. cxd5 {[%emt 0:03:12]} h3 {[%emt 0:00:37]} 15. g3 {[%emt 0:30:00]} c4 {[%emt 0:03:58]} 16. Be3 {[%emt 0:08:52]} Qa5 {[%emt 0:26:48]} 17. Bd4 {[%emt 0:20:42]} Nfd7 {[%emt 0:06:12]} 18. Ne3 {[%emt 0:04:16]} b5 {[%emt 0:06:30]} 19. O-O {[%emt 0:01:39]} b4 {[%emt 0:24:47]} 20. Ncd1 {[%emt 0:02:24]} Ba6 {[%emt 0:00:18]} 21. f4 {[%emt 0:02:51]} Nd3 {[%emt 0:05:14]} 22. Bxg7 {[%emt 0:00:11]} Kxg7 {[%emt 0:00:04]} 23. Nxc4 {[%emt 0:03:41]} Bxc4 {[%emt 0:00:27]} 24. Bxd3 {[%emt 0:00:09]} Bxa2 {[%emt 0:07:48]} 25. Nf2 {[%emt 0:02:58]} Nc5 {[%emt 0:01:25]} 26. Bc4 {[%emt 0:01:26]} Nxe4 {[%emt 0:07:26]} 27. Qd4+ {[%emt 0:00:19]} 1-0